bitfinex-derivatives/quotes_ETHF0:USTF0_20251028
["timestamp","ask_amount","ask_price","bid_price","bid_amount"]
[1761620041950,2.0056,4095.1,4095.0,7.66016]
[1761620042155,2.8675,4095.4,4095.3,1.9064]
[1761620042454,2.0056,4095.4,4095.3,7.66235339]
[1761620042651,0.00220081,4096.0,4095.9,4.58747]
[1761620042851,7.12370081,4096.0,4095.9,7.2206]
[1761620043055,2.0056,4096.8,4096.7,7.2206]
[1761620043451,2.18870977,4096.8,4096.7,7.2206]
[1761620044049,4.43889972,4096.8,4096.7,1.9064]
[1761620044653,0.18489972,4096.8,4096.7,6.3756]
[1761620044953,4.90889972,4096.8,4095.9,0.43947]
[1761620045254,6.1816,4095.4,4095.3,0.00222339]
[1761620045453,6.36470977,4095.4,4095.3,0.00222339]
[1761620045855,2.5087,4095.5,4093.9,2.5786]
[1761620046165,0.18310977,4094.0,4093.9,4.4098]
[1761620046453,0.18310977,4094.2,4094.1,4.3969]
[1761620046655,6.3053,4094.2,4093.6,3.00541]
[1761620046856,2.92670977,4094.1,4093.8,2.5657]
[1761620047056,4.4686,4093.9,4093.8,2.5657]
[1761620047262,4.47085451,4093.9,4093.8,2.5657]
[1761620047461,4.47085451,4093.9,4093.8,4.2663]
[1761620047654,4.65396428,4093.9,4093.8,1.7006]
[1761620047855,1.725,4093.7,4093.6,4.26860304]
[1761620048155,0.00225451,4093.9,4093.8,4.2663]
[1761620048354,4.47085451,4093.9,4093.8,4.2663]
[1761620048550,1.72725451,4093.9,4093.8,4.2663]
[1761620048751,1.72725451,4093.9,4093.8,6.0355]
[1761620049162,0.00225451,4093.9,4093.8,6.0355]
[1761620049356,4.65396428,4093.9,4093.8,6.0355]
[1761620049757,0.00225451,4093.9,4093.8,7.1174]
[1761620050261,2.7436,4094.7,4094.5,3.00531]
[1761620050469,2.7436,4094.7,4094.6,4.2663]
[1761620050663,43.5436,4094.9,4094.7,3.0053]
[1761620050856,4.4686,4094.9,4094.8,4.2663]
[1761620051056,2.7436,4095.4,4095.1,3.00524]
[1761620051363,2.7436,4095.4,4094.7,3.67460974]
[1761620051364,1.725,4095.3,4095.2,0.43954]
[1761620051559,4.65170977,4095.3,4095.2,1.7006]
[1761620051860,1.725,4094.9,4094.8,4.70588]
[1761620052055,0.18310977,4095.0,4094.9,6.0355]
[1761620052369,4.65170977,4095.0,4094.9,6.0355]
[1761620052557,4.4686,4095.0,4094.9,6.0355]
[1761620053462,4.4686,4095.3,4095.2,1.7006]
[1761620053663,4.4686,4095.3,4095.2,4.2663]
[1761620053863,4.65170977,4095.3,4095.2,4.2663]
[1761620054064,1.90810977,4095.3,4095.2,6.0355]
[1761620054666,0.00293958,4095.4,4095.3,3.00523]
[1761620054958,0.00293958,4095.4,4095.3,6.47503]
[1761620055161,1.72793958,4095.4,4095.3,6.0355]
[1761620055356,4.4686,4094.2,4094.1,2.5657]
[1761620055561,6.3053,4094.0,4093.9,1.7006]
[1761620055765,0.18310977,4094.0,4093.9,6.0355]
[1761620056067,2.7436,4094.4,4093.8,0.43969]
[1761620056068,2.7436,4094.4,4094.3,4.2663]
[1761620056263,6.3053,4094.4,4093.8,6.24030974]
[1761620056559,1.90810977,4094.1,4094.0,4.2663]
[1761620057160,6.48840977,4094.1,4094.0,1.7006]
[1761620058866,3.74480977,4094.1,4093.6,2.56800304]
[1761620059169,6.48840977,4093.7,4093.6,0.00230304]
[1761620060267,6.48840977,4093.7,4093.6,4.26860304]
[1761620060466,6.48840977,4093.7,4093.6,6.03780304]
[1761620061777,0.18310977,4093.7,4093.6,6.03780304]
[1761620062070,2.7436,4094.1,4093.7,3.0054]
[1761620062270,4.4686,4093.8,4093.7,4.706]
[1761620062472,4.65170977,4093.8,4093.7,4.706]
[1761620062874,4.4686,4093.7,4093.6,0.00230304]
[1761620063170,1.725,4093.7,4093.6,6.47751304]
[1761620063376,6.48840977,4093.7,4093.6,0.00230304]
[1761620068787,1.90810977,4093.7,4093.6,6.47751304]
[1761620069884,0.18310977,4093.7,4093.6,6.47751304]
[1761620070081,1.725,4093.9,4093.8,4.70599]
[1761620070286,6.48840977,4093.9,4093.8,4.70599]
[1761620070482,3.74480977,4093.9,4093.6,2.14260304]
[1761620070689,6.3053,4093.8,4093.7,0.4397]
[1761620071389,6.3053,4093.8,4093.7,2.1403]
[1761620071689,6.3053,4093.8,4093.7,4.706]
[1761620072191,6.3053,4094.0,4093.9,6.0355]
[1761620072790,6.3053,4094.0,4093.9,2.14028]
[1761620073181,6.48840977,4094.0,4093.9,1.7006]
[1761620073383,2.7436,4093.9,4093.6,4.26860304]
[1761620073583,4.4686,4093.7,4093.6,4.70831304]
[1761620073791,6.3053,4093.7,4093.6,4.70831304]
[1761620075390,1.725,4093.7,4093.6,6.47751304]
[1761620075591,5.7012,4094.1,4094.0,4.52347]
[1761620075792,5.7012,4094.5,4094.4,4.52343]
[1761620075990,5.7012,4094.5,4094.4,6.20613]
[1761620076192,1.78460977,4094.5,4094.4,9.88073974]
[1761620076396,1.6015,4094.5,4094.4,9.88073974]
[1761620078190,3.9998,4094.5,4094.4,9.88073974]
[1761620078397,5.7012,4094.5,4094.4,9.88073974]
[1761620078797,5.7012,4094.8,4094.7,4.52339]
[1761620079295,5.88430977,4094.8,4094.7,6.20609]
[1761620079899,5.88430977,4094.8,4094.7,5.7665]
[1761620081199,4.305,4094.5,4094.0,3.4461]
[1761620081503,4.305,4094.5,4093.7,4.5235]
[1761620081504,5.7012,4093.8,4093.7,4.5235]
[1761620081796,5.7012,4094.3,4094.2,4.52345]
[1761620081997,1.6015,4094.3,4094.2,6.20615]
[1761620082191,1.78460977,4094.3,4094.2,6.20615]
[1761620082397,3.9998,4094.6,4094.5,4.52342]
[1761620082701,1.6015,4094.6,4094.5,10.88342974]
[1761620083004,3.9998,4094.9,4094.8,6.20608]
[1761620083396,1.78460977,4094.9,4094.8,6.20608]
[1761620083891,4.18290977,4094.9,4094.8,6.20608]
[1761620084596,5.88430977,4094.9,4094.8,6.20608]
[1761620084903,5.88430977,4094.9,4094.8,2.07998]
[1761620085100,1.78460977,4094.9,4094.8,6.20608]
[1761620085303,0.18310977,4094.9,4094.8,9.88068974]
[1761620085598,1.78460977,4094.9,4094.8,9.88068974]
[1761620085902,5.7012,4095.3,4095.2,4.0838]
[1761620086100,5.88430977,4095.3,4095.2,4.0838]
[1761620086402,5.88430977,4095.3,4095.2,1.6404]
[1761620087198,5.88430977,4095.3,4095.2,4.52334]
[1761620088296,5.88430977,4095.3,4095.2,4.0838]
[1761620088501,5.88430977,4095.3,4095.2,1.6404]
[1761620088802,5.7012,4094.6,4094.5,3.76272]
[1761620089399,5.7012,4094.6,4094.5,6.20612]
[1761620090203,5.7012,4095.0,4094.9,5.7665]
[1761620090402,5.88430977,4095.0,4094.9,5.7665]
[1761620090907,5.88430977,4095.0,4094.9,6.20607]
[1761620091808,6.88640977,4095.0,4094.9,3.76267]
[1761620092006,6.88640977,4095.0,4094.9,2.07997]
[1761620092403,6.88640977,4095.0,4094.9,4.52337]
[1761620092907,6.88640977,4095.0,4094.9,2.07997]
[1761620093807,6.88640977,4095.0,4094.9,4.52337]
[1761620094004,5.88430977,4095.0,4094.9,6.20607]
[1761620094907,3.3029,4095.0,4094.9,6.20607]
[1761620095106,5.7012,4095.3,4095.2,6.20604]
[1761620095310,0.00293958,4095.4,4095.3,6.20603]
[1761620095503,0.00293958,4095.4,4095.3,9.88063974]
[1761620096004,5.70413958,4095.4,4095.3,5.7665]
[1761620096208,5.70413958,4095.4,4095.3,3.76263]
[1761620096608,5.70413958,4095.4,4095.3,6.20603]
[1761620100411,1.0021,4095.0,4094.5,4.52342]
[1761620100616,5.7012,4094.6,4094.5,4.52342]
[1761620100907,3.3029,4094.3,4094.0,1.6404]
[1761620101206,5.7012,4093.7,4093.6,6.20851304]
[1761620101508,3.3029,4093.7,4093.6,6.20851304]
[1761620101906,1.6015,4093.7,4093.6,6.20851304]
[1761620102106,3.9998,4094.0,4093.9,5.7665]
[1761620102307,1.6015,4094.0,4093.9,5.7665]
[1761620102506,5.7012,4094.9,4094.8,1.6404]
[1761620102707,5.7012,4094.9,4094.8,4.0838]
[1761620103010,5.88430977,4094.9,4094.8,1.6404]
[1761620103613,5.88430977,4094.9,4094.8,5.7665]
[1761620104007,3.48600977,4094.9,4094.5,4.0838]
[1761620104209,5.1204,4094.6,4094.5,2.08001]
[1761620104408,5.1204,4094.4,4094.3,4.00944]
[1761620104609,5.1204,4094.4,4094.3,5.63134]
[1761620105306,2.0547,4094.3,4093.9,2.1593]
[1761620105502,5.1204,4094.1,4094.0,3.5698]
[1761620105807,5.1204,4094.1,4094.0,5.1917]
[1761620106006,5.30350977,4094.1,4094.0,5.1917]
[1761620106311,5.1204,4094.0,4093.9,0.43968]
[1761620106512,5.30350977,4094.0,4093.9,0.43968]
[1761620106909,5.30350977,4094.0,4093.9,1.85018]
[1761620107309,5.30350977,4094.0,4093.9,4.00948]
[1761620107604,5.30350977,4094.0,4093.9,5.63138]
[1761620107914,5.1204,4094.0,4093.9,5.63138]
[1761620109310,1.507,4094.0,4093.9,5.63138]
[1761620110016,5.2329,4094.4,4094.3,4.9695]
[1761620110210,1.5015,4094.4,4094.3,4.9695]
[1761620110517,3.7372,4094.7,4094.6,4.9695]
[1761620110717,5.2329,4094.7,4094.6,1.3945]
[1761620110906,5.41600977,4094.7,4094.6,1.3945]
[1761620111313,5.41600977,4094.7,4094.6,3.5007]
[1761620113715,5.41600977,4094.7,4094.6,3.94031]
[1761620114111,5.41600977,4094.7,4094.6,5.40911]
[1761620114816,5.2329,4095.1,4095.0,4.9695]
[1761620115004,5.2329,4095.1,4095.0,5.40906]
[1761620115205,5.41600977,4095.1,4095.0,5.40906]
[1761620115916,5.41600977,4095.1,4095.0,4.9695]
[1761620116210,5.2329,4095.3,4095.2,4.9695]
[1761620116416,3.18030977,4095.3,4095.2,5.40904]
[1761620116613,5.41600977,4095.3,4095.2,5.40904]
[1761620117007,3.18030977,4095.3,4095.2,5.40904]
[1761620117318,0.00293958,4095.4,4095.0,0.8564]
[1761620117319,5.23583958,4095.4,4095.3,3.5007]
[1761620117608,5.23583958,4095.4,4095.3,5.40903]
[1761620117814,1.68754935,4095.4,4095.3,5.40903]
[1761620118015,3.92324935,4095.4,4095.3,5.40903]
[1761620118220,5.41894935,4095.4,4095.3,5.40903]
[1761620120020,1.50443958,4095.4,4095.3,5.40903]
[1761620120213,0.00293958,4095.4,4095.3,5.40903]
[1761620120516,3.74013958,4095.4,4095.3,5.40903]
[1761620121028,2.2357,4095.3,4094.6,2.1062]
[1761620121218,3.18030977,4095.1,4095.0,3.5007]
[1761620121417,3.18030977,4095.1,4095.0,4.9695]
[1761620121613,3.18030977,4095.1,4095.0,1.3945]
[1761620121809,3.18030977,4095.1,4094.3,2.54583]
[1761620121810,2.2357,4094.6,4094.3,2.54583]
[1761620122017,5.2329,4094.4,4094.3,5.40913]
[1761620122214,2.9972,4094.4,4094.3,5.40913]
[1761620122414,1.5015,4094.4,4094.3,5.40913]
[1761620122616,3.7372,4094.4,4094.3,5.40913]
[1761620123018,5.2329,4094.8,4094.7,4.9695]
[1761620123419,5.41600977,4094.8,4094.7,2.8633]
[1761620123821,2.2357,4094.7,4094.4,5.40912]
[1761620124127,5.2329,4094.6,4094.5,3.5007]
[1761620124921,5.2329,4094.6,4094.5,5.40912]
[1761620125224,5.2329,4094.6,4094.2,4.35014563]
[1761620125225,2.2357,4094.4,4094.2,3.5007]
[1761620125523,5.2329,4094.3,4094.2,5.40915]
[1761620127526,2.9972,4094.3,4094.2,5.40915]
[1761620127925,5.2329,4094.3,4094.2,5.40915]
[1761620130922,2.9972,4094.3,4094.2,5.40915]
[1761620131326,1.5015,4094.3,4094.2,5.40915]
[1761620133732,5.2329,4094.3,4094.2,5.40915]
[1761620134231,2.9972,4094.3,4094.2,5.40915]
[1761620134425,1.5015,4094.3,4094.2,5.40915]
[1761620136236,3.5142,4094.3,4094.2,5.40915]
[1761620136428,3.3588,4094.6,4094.5,2.0543]
[1761620136634,1.3461,4094.6,4094.5,5.80732]
[1761620136832,1.3461,4094.6,4094.5,5.3677]
[1761620137028,5.02910977,4094.6,4094.5,5.80732]
[1761620137841,3.01640977,4094.6,4094.5,5.80732]
[1761620138634,0.18310977,4094.6,4094.5,5.80732]
[1761620138938,4.846,4095.3,4095.2,4.5536]
[1761620139138,0.00293958,4095.4,4095.3,4.99313]
[1761620139340,3.36173958,4095.4,4095.3,4.5536]
[1761620139536,5.03204935,4095.4,4095.3,4.99313]
[1761620140627,0.00293958,4095.4,4095.3,4.99313]
[1761620140832,0.00293958,4095.4,4095.3,8.18245199]
[1761620144433,0.00293958,4095.4,4095.3,16.18245199]
[1761620144638,3.3588,4096.6,4096.5,5.8071]
[1761620144936,4.846,4096.6,4096.5,5.3677]
[1761620145136,5.02910977,4096.6,4096.5,4.5536]
[1761620145638,5.03095674,4096.6,4096.5,4.55591579]
[1761620147035,5.03095674,4096.6,4096.5,1.24251579]
[1761620147237,5.03095674,4096.6,4096.5,3.19011579]
[1761620149742,5.03095674,4096.6,4096.5,4.88815989]
[1761620150341,5.03095674,4096.6,4096.5,6.25395989]
[1761620151137,1.53105674,4096.6,4096.5,7.06805989]
[1761620151537,3.54375674,4096.6,4096.5,7.06805989]
[1761620152035,5.03095674,4096.6,4096.5,4.99531579]
[1761620152236,5.03095674,4096.6,4096.5,7.06805989]
[1761620152644,1.53105674,4096.6,4096.5,7.06805989]
[1761620152942,0.18495674,4096.6,4096.5,7.06805989]
[1761620153838,5.03095674,4096.6,4096.5,0.00231579]
[1761620154044,4.846,4095.7,4095.6,1.6797]
[1761620154244,1.4872,4095.5,4095.4,3.1878]
[1761620154442,4.846,4095.2,4095.1,4.5536]
[1761620154840,5.02910977,4095.2,4095.1,4.5536]
[1761620155043,5.02910977,4095.2,4095.1,4.55647772]
[1761620155246,1.52920977,4095.2,4095.1,4.55647772]
[1761620156540,3.54190977,4095.2,4095.1,4.55647772]
[1761620157136,5.02910977,4095.2,4095.1,1.24307772]
[1761620157443,5.02910977,4095.2,4095.1,5.81512182]
[1761620157644,5.02910977,4095.2,4095.1,2.50172182]
[1761620158346,5.02910977,4095.2,4095.1,5.81512182]
[1761620158942,5.02910977,4095.2,4095.1,0.00287772]
[1761620159449,5.6381,4094.5,4094.4,4.8860741]
[1761620159638,5.6381,4094.5,4094.4,6.07164205]
[1761620159941,4.846,4094.5,4094.4,6.07164205]
[1761620160137,4.846,4094.5,4094.4,5.63201205]
[1761620160444,3.3588,4095.1,4094.4,3.68725906]
[1761620160649,4.846,4094.9,4094.8,4.5536]
[1761620161245,4.846,4094.9,4094.8,2.606]
[1761620161444,0.7921,4095.5,4094.5,3.62741]
[1761620161445,4.846,4094.6,4094.5,3.62741]
[1761620161745,4.846,4094.6,4094.5,2.4988441]
[1761620161948,5.6381,4094.5,4094.4,0.00284701]
[1761620162852,5.6381,4094.5,4094.4,1.24304701]
[1761620164056,5.6381,4094.5,4094.4,3.19064701]
[1761620165051,1.4872,4094.5,4094.4,4.55644701]
[1761620165248,4.3035,4095.0,4094.9,4.3766]
[1761620165548,2.5127,4095.0,4094.9,5.6352441]
[1761620165753,1.1789,4095.0,4094.9,5.6352441]
[1761620166049,2.9697,4095.0,4094.9,5.6352441]
[1761620166447,3.0033,4095.3,4095.2,4.68884]
[1761620166652,1.1979,4095.3,4095.2,5.9474841]
[1761620167044,4.1945,4095.3,4095.2,5.9474841]
[1761620167241,2.3891,4095.3,4095.2,5.9474841]
[1761620167451,1.1979,4095.3,4095.2,5.9474841]
[1761620169851,1.1979,4095.3,4095.2,5.738186]
[1761620171055,4.1945,4095.6,4095.5,4.2493]
[1761620171556,4.1945,4095.6,4095.5,1.049346]
[1761620172951,4.1945,4095.6,4095.5,6.430456]
[1761620172952,1.1979,4095.6,4095.5,6.430456]
[1761620173150,1.1979,4095.6,4095.5,7.479802]
[1761620173456,4.1945,4095.9,4095.8,2.84457]
[1761620173755,4.1945,4095.9,4095.8,3.893916]
[1761620173946,4.1945,4095.9,4095.8,5.738116]
[1761620174153,4.1945,4095.9,4095.8,1.049346]
[1761620174846,4.1945,4095.9,4095.8,2.703626]
[1761620175046,1.1979,4095.9,4095.8,5.738126]
[1761620175249,4.1945,4096.3,4096.2,4.68873]
[1761620175457,4.1945,4096.3,4096.2,5.738076]
[1761620175750,4.1945,4096.3,4096.2,1.049346]
[1761620176257,1.8054,4095.7,4095.6,0.4395]
[1761620176457,1.1979,4095.7,4095.6,6.787492]
[1761620176643,1.9015,4096.5,4096.1,1.8442]
[1761620176844,4.1945,4096.5,4096.4,5.298646]
[1761620177755,4.9331,4096.5,4096.4,1.049346]
[1761620178255,4.1945,4096.5,4096.4,5.738056]
[1761620178451,4.1945,4096.5,4096.4,5.298646]
[1761620178652,4.1945,4096.5,4096.4,5.738056]
[1761620179150,4.9331,4096.5,4096.4,5.298646]
[1761620179356,4.9331,4096.5,4096.4,3.454446]
[1761620179752,4.9331,4096.5,4096.4,5.298646]
[1761620180752,4.9331,4096.5,4096.4,3.454446]
[1761620182162,4.9331,4096.5,4096.4,3.893856]
[1761620182464,4.9331,4096.5,4096.4,5.738056]
[1761620183467,4.9331,4096.5,4096.4,5.298646]
[1761620183862,4.9331,4096.5,4096.4,5.738056]
[1761620184059,1.1979,4096.5,4096.4,5.738056]
[1761620184564,0.00184697,4096.6,4096.4,5.738056]
[1761620184565,0.00184697,4096.6,4096.5,5.381]
[1761620185261,1.19974697,4096.6,4096.5,5.381]
[1761620185467,4.19634697,4096.6,4096.5,5.381]
[1761620185662,4.19634697,4096.6,4096.5,4.6887]
[1761620186168,1.19974697,4096.6,4096.5,5.381]
[1761620187261,0.00184697,4096.6,4096.5,5.381]
[1761620187468,0.00184697,4096.6,4096.5,6.430346]
[1761620188958,2.39094697,4096.6,4096.5,0.4394]
[1761620189166,2.39094697,4096.6,4095.6,2.1975]
[1761620189167,4.1945,4095.6,4095.5,3.49851]
[1761620189375,2.3891,4095.6,4095.5,7.479802]
[1761620189575,1.1979,4095.6,4095.5,7.479802]
[1761620190167,3.0033,4096.2,4096.1,4.68875]
[1761620190372,3.0033,4096.2,4096.1,5.738096]
[1761620190571,1.1979,4096.2,4096.1,5.738096]
[1761620191077,4.1945,4096.2,4096.1,5.738096]
[1761620191276,4.1945,4096.2,4096.1,5.298646]
[1761620192670,2.3891,4096.2,4096.1,5.298646]
[1761620192875,42.6054,4096.5,4096.4,4.2493]
[1761620193076,42.6054,4096.5,4096.4,5.298646]
[1761620193275,4.1945,4096.5,4096.4,5.298646]
[1761620194375,2.2666,4097.0,4096.5,2.6481]
[1761620194676,2.2666,4097.0,4096.5,4.9114]
[1761620195078,3.74204697,4096.6,4096.5,4.2497]
[1761620195278,3.74204697,4096.6,4096.5,4.9114]
[1761620195477,3.74204697,4096.6,4096.5,5.960746]
[1761620195673,0.00184697,4096.6,4096.5,5.960746]
[1761620195982,1.02764697,4096.6,4096.5,5.960746]
[1761620197073,1.02764697,4096.6,4096.5,4.9114]
[1761620197273,3.74204697,4096.6,4096.5,4.9114]
[1761620197479,1.02764697,4096.6,4096.5,5.960746]
[1761620197680,1.02764697,4096.6,4096.5,4.9114]
[1761620198075,1.02764697,4096.6,4096.5,5.960746]
[1761620199985,0.00184697,4096.6,4096.5,5.960746]
[1761620200378,1.02764697,4096.6,4096.5,5.960746]
[1761620200579,0.00184697,4096.6,4096.5,5.960746]
[1761620202076,40.8,4097.4,4096.5,5.960746]
[1761620202077,2.2122,4097.3,4097.2,3.8103]
[1761620202276,2.2122,4097.3,4097.2,4.859646]
[1761620202676,3.7402,4097.3,4097.2,4.859646]
[1761620202885,3.7402,4097.3,4097.2,5.298976]
[1761620203186,3.74253628,4097.3,4097.2,5.298976]
[1761620203587,2.21453628,4097.3,4097.2,5.298976]
[1761620203789,1.02813628,4097.3,4097.2,5.298976]
[1761620204387,2.55613628,4097.3,4097.2,5.298976]
[1761620205280,0.00233628,4097.3,4097.2,5.298976]
[1761620205488,1.0258,4097.6,4097.5,4.9113]
[1761620205687,2.5538,4097.8,4097.7,4.24957]
[1761620205885,3.7402,4097.8,4097.7,6.348262]
[1761620206284,1.0258,4097.8,4097.7,6.348262]
[1761620206484,0.7386,4098.5,4097.7,6.348262]
[1761620206485,40.8,4098.4,4098.1,1.547]
[1761620206686,42.3301536,4098.4,4098.3,3.698846]
[1761620207189,2.5559536,4098.4,4098.3,4.859646]
[1761620207386,3.7423536,4098.4,4098.3,4.859646]
[1761620207584,2.2143536,4098.4,4098.3,4.859646]
[1761620207790,3.7423536,4098.4,4098.3,4.859646]
[1761620209289,3.7423536,4098.4,4098.3,3.698846]
[1761620209492,2.2122,4097.9,4097.8,0.43926]
[1761620209689,3.7402,4097.9,4097.8,1.488606]
[1761620209890,3.7402,4097.9,4097.8,4.138106]
[1761620211191,3.7402,4097.9,4097.8,5.187452]
[1761620211397,3.7402,4098.3,4098.2,3.8103]
[1761620211592,2.2122,4098.3,4098.2,5.298866]
[1761620211896,3.7402,4098.3,4098.2,5.298866]
[1761620212189,3.7402,4098.3,4098.2,4.859646]
[1761620212396,2.2122,4098.3,4098.2,5.298866]
[1761620213096,1.0258,4098.3,4098.2,5.298866]
[1761620213292,0.0021536,4098.4,4098.3,0.43921]
[1761620213493,0.0021536,4098.4,4098.3,4.24951]
[1761620213695,1.0279536,4098.4,4098.3,4.24951]
[1761620213996,1.0279536,4098.4,4098.3,3.8103]
[1761620214188,2.2143536,4098.4,4098.3,3.8103]
[1761620214388,3.7423536,4098.4,4098.3,3.8103]
[1761620214987,3.7423536,4098.4,4098.3,4.24951]
[1761620215188,3.7423536,4098.4,4098.3,3.8103]
[1761620215593,1.528,4098.3,4098.2,0.43922]
[1761620215799,3.7402,4098.3,4098.2,1.98622]
[1761620216102,3.7402,4098.3,4098.2,3.08872]
[1761620216489,3.7402,4098.3,4098.2,4.24952]
[1761620216694,2.2122,4098.3,4098.2,4.24952]
[1761620216894,3.7402,4098.3,4098.2,2.6495]
[1761620217094,3.7402,4098.3,4098.2,3.698846]
[1761620217291,1.528,4098.2,4098.0,1.049346]
[1761620217489,4.80604,4098.0,4097.9,1.049346]
[1761620217696,4.3668,4098.0,4097.9,1.049346]
[1761620217898,4.80604,4098.0,4097.9,1.049346]
[1761620218498,4.3668,4098.0,4097.9,1.049346]
[1761620218993,1.0258,4098.0,4097.9,6.348242]
[1761620219304,0.0021536,4098.4,4098.3,4.24951]
[1761620219305,1.0279536,4098.4,4098.3,4.24951]
[1761620219501,1.0279536,4098.4,4098.3,5.298856]
[1761620219898,0.0021536,4098.4,4098.3,5.298856]
[1761620220104,2.7275,4099.0,4098.9,4.24945]
[1761620220297,2.7275,4099.0,4098.9,5.298796]
[1761620220701,2.7275,4099.0,4098.9,4.859646]
[1761620220998,0.64177264,4099.0,4098.9,5.298796]
[1761620221302,40.8,4099.4,4098.9,5.298796]
[1761620221303,40.8,4099.4,4099.3,3.8103]
[1761620221895,41.8617,4099.4,4099.3,1.547]
[1761620222097,41.86383264,4099.4,4099.3,1.547]
[1761620222600,40.80213264,4099.4,4099.3,2.6495]
[1761620223500,40.80213264,4099.4,4099.3,3.8103]
[1761620223906,0.00213264,4099.4,4099.3,3.8103]
[1761620224606,1.09739,4100.7,4099.3,3.8103]
[1761620224607,0.8675,4100.4,4099.5,0.596]
[1761620224907,0.8675,4100.0,4099.9,7.43373412]
[1761620225102,0.8675,4100.4,4100.3,2.4576]
[1761620225404,1.735,4100.4,4100.3,2.4576]
[1761620225603,42.5371848,4100.4,4100.3,2.4576]
[1761620226397,42.5371848,4100.4,4100.3,3.5843]
[1761620226599,1.7371848,4100.4,4100.3,3.5843]
[1761620226805,0.0021848,4100.4,4100.3,3.5843]
[1761620227401,0.0021848,4100.4,4100.3,4.0233]
[1761620228708,0.0021848,4100.4,4100.3,3.5843]
[1761620228908,2.5722848,4100.4,4100.3,1.4678]
[1761620229109,1.7134,4100.1,4100.0,3.0417]
[1761620229313,2.5701,4100.1,4100.0,1.4326]
[1761620230202,0.0021848,4100.4,4100.3,3.4835]
[1761620230401,0.8589,4102.4,4102.3,3.4835]
[1761620230603,1.7178,4102.2,4102.1,1.4326]
[1761620231199,1.7178,4102.2,4102.1,2.4457]
[1761620231404,1.72080615,4102.2,4102.1,2.44752352]
[1761620232309,1.72080615,4102.2,4102.1,3.48532352]
[1761620232608,2.57970615,4102.2,4102.1,0.00182352]
[1761620233912,2.57970615,4102.2,4102.1,1.43442352]
[1761620234514,43.37970615,4102.2,4102.1,1.43442352]
[1761620235116,43.37970615,4102.2,4102.1,0.00182352]
[1761620235617,42.52080615,4102.2,4102.1,2.44752352]
[1761620235916,42.52080615,4102.2,4102.1,3.48532352]
[1761620236115,40.80300615,4102.2,4102.1,3.48532352]
[1761620236418,0.00300615,4102.2,4102.1,3.48532352]
[1761620236609,0.022,4102.8,4102.7,1.87134]
[1761620236813,0.8589,4103.8,4103.7,3.4835]
[1761620237110,1.7178,4103.8,4103.7,1.0131]
[1761620237314,1.7178,4103.8,4103.5,4.94342323]
[1761620237315,40.8,4104.3,4104.2,2.4457]
[1761620237711,0.86200197,4104.3,4104.2,2.4457]
[1761620237908,0.86200197,4104.3,4104.2,3.4835]
[1761620238108,2.57980197,4104.3,4104.2,1.0131]
[1761620238317,1.7178,4104.1,4104.0,2.0375]
[1761620238716,0.00310197,4104.3,4103.7,7.82202323]
[1761620239014,0.00310197,4104.3,4104.2,3.4835]
[1761620239513,0.86200197,4104.3,4104.2,3.4835]
[1761620239718,1.72090197,4104.3,4104.2,2.4457]
[1761620240012,1.72090197,4104.3,4103.5,2.0375]
[1761620240013,0.8589,4103.7,4103.5,2.0375]
[1761620240211,0.8589,4103.7,4103.1,4.33852323]
[1761620240212,0.8589,4103.3,4103.2,1.4326]
[1761620240407,0.8589,4103.3,4103.2,2.4457]
[1761620240813,2.5767,4103.3,4103.2,1.4326]
[1761620241017,2.15654,4102.7,4102.6,1.4326]
[1761620241219,0.8589,4102.3,4102.2,1.4326]
[1761620241717,1.7178,4102.3,4102.2,1.4326]
[1761620242215,2.5767,4102.3,4102.2,1.4326]
[1761620243315,0.43879,4102.2,4102.1,0.00182352]
[1761620243515,2.15659,4102.2,4102.1,1.43442352]
[1761620244421,43.81549,4102.2,4102.1,0.00182352]
[1761620245118,2.15668,4101.4,4101.3,2.4457]
[1761620245721,2.15668,4101.4,4101.3,1.4326]
[1761620246021,2.1592109,4101.4,4101.3,1.43542561]
[1761620246216,0.8614309,4101.4,4101.3,3.48632561]
[1761620246420,1.7203309,4101.4,4101.3,2.44852561]
[1761620247219,2.5792309,4101.4,4101.3,1.43542561]
[1761620247418,1.7203309,4101.4,4101.3,2.44852561]
[1761620248715,2.5792309,4101.4,4101.3,0.00282561]
[1761620249118,3.16777421,4101.4,4101.3,0.00282561]
[1761620250219,43.96777421,4101.4,4101.3,0.00282561]
[1761620251616,43.96777421,4101.4,4100.1,2.4457]
[1761620251617,1.7178,4100.6,4100.1,2.4457]
[1761620251821,1.7178,4100.6,4099.9,4.33852323]
[1761620251822,1.7178,4100.3,4100.2,2.4457]
[1761620252620,1.7178,4100.3,4100.2,2.44780692]
[1761620253023,2.1568,4100.3,4100.2,2.44780692]
[1761620253721,2.1568,4100.3,4100.2,3.48560692]
[1761620254918,0.84551332,4101.4,4101.0,0.97772]
[1761620255120,0.0025309,4101.4,4101.3,7.55492323]
[1761620255726,0.0025309,4101.4,4101.3,7.99381323]
[1761620256328,0.0025309,4101.4,4101.3,7.55492323]
[1761620259128,40.8,4102.4,4101.9,0.43882]
[1761620259331,40.8,4102.4,4102.3,2.2438]
[1761620259725,40.8,4102.4,4102.3,3.2164]
[1761620260224,40.80213042,4102.4,4102.3,3.2164]
[1761620261935,0.00213042,4102.4,4102.3,3.2164]
[1761620262426,41.94233042,4102.4,4102.3,2.2438]
[1761620262623,42.38110042,4102.4,4102.3,2.2438]
[1761620263828,42.95120042,4102.4,4102.3,1.3079]
[1761620264029,0.5701,4101.7,4101.6,1.37475]
[1761620264229,0.5701,4101.7,4101.6,1.9085]
[1761620264429,1.57905,4101.7,4101.6,3.2164]
[1761620265028,0.5701,4101.7,4101.6,3.2164]
[1761620265623,1.00895,4101.7,4101.6,3.2164]
[1761620265828,1.57905,4101.7,4101.6,3.2164]
[1761620266022,1.57905,4101.7,4101.6,1.3079]